Cogmind - Beta 13 @@@ ROGUE MODE // 2024.04.22 @ 21:52:53 Player: lucky255 Result: Destroyed by H-55 Commando with Gauss Rifle Performance ------------- Evolutions (2) 1000 Regions Visited (5) 1000 Robots Destroyed (45) 225 Value Destroyed (1104) 1104 Prototype IDs (0) 0 Alien Tech Used (0) 0 Bonus (68) 68 TOTAL SCORE: 3397 Bonus ------- High Alert Combat Kills 8 Follower Combat Kills 60 Cogmind --------- Core Integrity 0/550 Matter 120/300 Energy 32/100 System Corruption 0% Temperature Cool (2) Movement Flying (34) Location -8/Materials Parts ------- > --- POWER (1) -------- (None) > --- PROPULSION (3) --- Flight Unit Cesium-ion Thruster > --- UTILITY (5) ------ Advanced Visual Processing Unit Targeting Computer > --- WEAPON (2) ------- Backup Laser III > --- INVENTORY (5) ---- Backup Propulsion III Experimental Sensor Array Improved Datajack Peak State ------------ > --- POWER ------------ Micro Nuclear Core > --- PROPULSION ------- Improved Hover Unit Backup Propulsion III Combat Airjet > --- UTILITY ---------- Advanced Visual Processing Unit Sensor Array Targeting Computer Hacking Suite Hacking Suite > --- WEAPON ----------- Improved Light Cannon Rocket Launcher > --- INVENTORY -------- Improved Hover Unit Experimental Sensor Array Core Shielding Improved Datajack [Rating: 30] Favorites ----------- Power Light Ion Engine Engine Light Ion Engine Power Core Micro Nuclear Core Propulsion Combat Airjet Treads Light Treads Hover Unit Combat Airjet Flight Unit Cesium-ion Thruster Utility Hacking Suite Device Sensor Array Storage Small Storage Unit Processor Targeting Computer Hackware Hacking Suite Protection Propulsion Shielding Weapon Assault Cannon Energy Gun EM Pulse Gun Ballistic Gun Assault Rifle Ballistic Cannon Assault Cannon Launcher Grenade Launcher Special Weapon Mining Laser Special Melee Weapon Datajack Build | -11 -10 -10 -9 -9 -8 ------- Run | Yrd Mat Min Mat Min Mat Slots Evolved 4 | . . . 2 . 2 Power . | . . . . . . Propulsion 1 | . . . 1 . . Utility 3 | . . . 1 . 2 Weapon . | . . . . . . Parts Attached 58 | 5 3 7 19 3 21 Power 5 | 1 . 1 2 . 1 Engine 4 | 1 . 1 2 . . Core 1 | . . . . . 1 Reactor . | . . . . . . Propulsion 13 | 2 . 1 3 . 7 Treads 3 | 2 . 1 . . . Leg . | . . . . . . Wheel . | . . . . . . Hover 7 | . . . 3 . 4 Flight 3 | . . . . . 3 Utility 19 | . 2 3 7 . 7 Device 6 | . 1 2 1 . 2 Storage 1 | . . 1 . . . Processor 4 | . 1 . 1 . 2 Hackware 3 | . . . 3 . . Protection 5 | . . . 2 . 3 Artifact . | . . . . . . Weapon 21 | 2 1 2 7 3 6 Energy Gun 5 | 1 . . . . 4 Energy Cannon . | . . . . . . Ballistic Gun 2 | 1 . . 1 . . Ballistic Cannon 7 | . . 1 3 2 1 Launcher 3 | . 1 1 . . 1 Special Weapon 1 | . . . . 1 . Impact Weapon . | . . . . . . Slashing Weapon . | . . . . . . Piercing Weapon . | . . . . . . Special Melee Weapon 3 | . . . 3 . . Unidentified Prototypes . | . . . . . . Parts Lost 22 | . . 5 1 . 16 Power 2 | . . . . . 2 Propulsion 6 | . . 2 . . 4 Utility 5 | . . 1 1 . 3 Weapon 9 | . . 2 . . 7 Highest Loss Streak 11 | . . 5 1 . 11 To Critical Strikes . | . . . . . . Average Slot Usage (%) 85 | . 83 99 74 99 87 Engine 10 | . 14 14 10 11 4 Treads 8 | . 28 27 . . . Hover 11 | . . . 11 33 19 Device 7 | . 2 16 8 . 6 Processor 12 | . 9 6 11 11 18 Hackware 8 | . . . 6 22 16 Protection 2 | . . . 6 . 2 Ballistic Gun 3 | . 14 8 . . . Ballistic Cannon 12 | . . 12 16 15 13 Launcher 2 | . 10 6 . . . Special Melee Weapon 1 | . . . 3 . . Naked Turns . | . . . . . . Heaviest Build 21 | 9 11 21 17 13 15 Greatest Support 40 | 40 40 40 24 24 27 Greatest Overweight (x) 4 | 1 . 4 1 . 1 Average Overweight (x) . | . . . . . . Largest Inventory Capacity 8 | 5 5 8 5 5 5 Average Capacity 5 | 5 5 6 5 5 5 Most Carried 7 | 4 5 7 5 5 5 Average Carried 4 | 1 3 5 4 4 4 Final Capacity 5 | 5 5 5 5 5 5 Final Carried 5 | 1 4 5 5 5 3 Class Distribution -------------------- 66% | Mutant 23% | Scavenger-Mutant 10% | Hacker-Mutant Dominant Class ---------------- Mutant | -10/Materials Mutant | -10/Mines Mutant | -9/Materials Scavenger-Mutant | -9/Mines Scavenger-Mutant | -8/Materials Resources | -11 -10 -10 -9 -9 -8 ----------- Run | Yrd Mat Min Mat Min Mat Matter Collected 1291 | 172 129 217 282 104 387 Remotely . | . . . . . . Salvage Created 1140 | . 190 148 352 83 367 Parts 94 | . 27 4 27 5 31 Haulers Intercepted . | . . . . . . Recyclers Shooed 1 | . . 1 . . . Parts Field Recycled . | . . . . . . Retrieved Matter . | . . . . . . Parts Self-Destructed . | . . . . . . Prevented . | . . . . . . Kills | -11 -10 -10 -9 -9 -8 ------- Run | Yrd Mat Min Mat Min Mat Combat Hostiles Destroyed 37 | . 8 3 8 2 16 Guns 7 | . 3 2 . . 2 Cannons 24 | . . . 8 2 14 AOE 6 | . 5 1 . . . Classes Destroyed 12 | . 4 2 2 1 3 Worker 1 | . . . 1 . . Builder 3 | . 3 . . . . Recycler 2 | . . 2 . . . Mechanic 1 | . . . . . 1 Watcher 4 | . 1 . 2 . 1 Swarmer 12 | . 6 . . . 6 Cutter 3 | . . . . . 3 Grunt 15 | . 2 . 7 1 5 Brawler 1 | . . . 1 . . Duelist 1 | . . . . 1 . Sentry 2 | . . . . . 2 Assembled 3 | . . 3 . . . Best Kill Streak 7 | . 7 3 5 1 5 Combat Bots Only 5 | . 5 3 5 1 5 Max Kills in Single Turn 3 | . 3 1 2 1 1 Gunslinging . | . . . . . . Exploded 3 | . 3 1 . . . Melee . | . . . . . . Uniques/NPCs Destroyed . | . . . . . . Combat | -11 -10 -10 -9 -9 -8 -------- Run | Yrd Mat Min Mat Min Mat Hostile Shots Fired 227 | . 29 30 34 1 133 Missed 58 | . 9 10 5 1 33 Damage Taken 2702 | . 198 645 404 . 1455 Core 822 | . 61 114 86 . 561 Absorbed by Shields . | . . . . . . Redirected to Shielding 63 | . . . 11 . 52 Regen/Repaired (Parts) 72 | . . . . . 72 Core Remaining (%) 69 | 100 . 30 . 78 . Volleys Fired 126 | . 16 14 14 3 79 Largest 2 | . 2 2 2 2 2 Hottest 88 | . 60 87 88 88 88 Shots Fired 194 | . 29 22 27 6 110 Gun 56 | . 26 11 . . 19 Cannon 129 | . . 6 27 6 90 Launcher 9 | . 3 5 . . 1 Special . | . . . . . . Kinetic 156 | . 16 17 27 6 90 Thermal 19 | . . . . . 19 Explosive 9 | . 3 5 . . 1 Electromagnetic 10 | . 10 . . . . Robot Hit Streak 10 | . 5 7 6 8 10 Robot Miss Streak 5 | . 5 4 2 . 4 Penetration Max . | . . . . . . Secondary Targets . | . . . . . . Shots Hit Robots 97 | . 12 11 16 4 54 Core Hits 67 | . 13 9 13 2 30 Critical Kills . | . . . . . . Critical Parts Destroyed 1 | . . 1 . . . Critical Strikes 4 | . . 1 1 . 2 Destroy 1 | . . 1 . . . Blast 3 | . . . 1 . 2 Melee Attacks 1 | . . . 1 . . Impact . | . . . . . . Slashing . | . . . . . . Piercing . | . . . . . . Sneak Attacks 1 | . . . 1 . . Combat Hostiles . | . . . . . . Follow-up Attacks . | . . . . . . Damage Inflicted 2482 | 1 443 275 378 123 1262 Guns 310 | . 146 73 . . 91 Cannons 1666 | . . 74 378 123 1091 Explosions 505 | . 297 128 . . 80 Melee . | . . . . . . Ramming 1 | 1 . . . . . Kinetic 1837 | . 98 147 378 123 1091 Thermal 186 | . 95 . . . 91 Explosive 410 | . 202 128 . . 80 Electromagnetic 48 | . 48 . . . . Impact . | . . . . . . Slashing . | . . . . . . Piercing . | . . . . . . Highest Corruption . | . . . . . . Average Corruption . | . . . . . . Corruption Purged . | . . . . . . Corruption Blocked . | . . . . . . Overload Shots . | . . . . . . Overflow Damage 41 | . . 28 . . 13 Projectiles 41 | . . 28 . . 13 Explosions . | . . . . . . Melee . | . . . . . . Knockbacks 17 | . . . 3 1 13 Impact . | . . . . . . Kinetic 15 | . . . 3 1 11 Secondary 2 | . . . . . 2 Self-Inflicted Damage 33 | . 33 . . . . Shots 1 | . 1 . . . . Rammed 1 | 1 . . . . . Targets Rammed 1 | 1 . . . . . Kicked . | . . . . . . Crushed . | . . . . . . Highest Temperature 303 | . 12 45 303 48 273 Average Temperature 83 | . 8 19 116 21 89 Received Heat Transfer 450 | . 18 . 189 . 243 Effects 1 | . . . . . 1 Interference 1 | . . . . . 1 Siege Activations . | . . . . . . Robots Corrupted . | . . . . . . Combat Hostiles . | . . . . . . Parts Fried . | . . . . . . Impact Corruptions . | . . . . . . Robots Melted . | . . . . . . Combat Hostiles . | . . . . . . Parts Melted . | . . . . . . Heat Transferred 359 | . 100 . . . 259 Parts Sabotaged . | . . . . . . Parts Stolen . | . . . . . . Parts Stripped . | . . . . . . Power Chain Reactions 1 | . 1 . . . . Alert | -11 -10 -10 -9 -9 -8 ------- Run | Yrd Mat Min Mat Min Mat Peak Influence 486 | . 231 54 263 191 486 Initial 74 | . . 20 . 54 74 Average 106 | . 115 39 53 97 214 Maximum Alert Level 2 | . 1 . 1 . 2 Low Security (%) 77 | 100 60 100 89 100 53 Level 1 20 | . 39 . 10 . 40 Level 2 1 | . . . . . 6 Level 3 . | . . . . . . Level 4 . | . . . . . . Level 5 . | . . . . . . High Security . | . . . . . . Max Security . | . . . . . . Squads Dispatched 5 | . 1 . 1 . 3 Investigation 1 | . . . . . 1 Extermination . | . . . . . . Reinforcement 4 | . 1 . 1 . 2 Assault . | . . . . . . Garrison . | . . . . . . Intercept . | . . . . . . Searches Triggered . | . . . . . . Construction Impeded . | . . . . . . Haulers Reinforced . | . . . . . . Active Scanning Responses . | . . . . . . Cargo Convoy Interrupts . | . . . . . . Stealth | -11 -10 -10 -9 -9 -8 --------- Run | Yrd Mat Min Mat Min Mat Distress Signals 7 | . 2 . . . 5 Communications Jammed . | . . . . . . Distress Signals . | . . . . . . Times Spotted 76 | . 14 8 13 5 36 Peak Tracking Total 7 | . 4 2 6 2 7 Tactical Retreats 10 | . . 3 1 1 5 Traps | -11 -10 -10 -9 -9 -8 ------- Run | Yrd Mat Min Mat Min Mat Traps Triggered 2 | . . . 2 . . Indirectly . | . . . . . . Trap Hack Attempts . | . . . . . . Triggered . | . . . . . . Disarmed . | . . . . . . Reprogrammed . | . . . . . . Reused . | . . . . . . Traps Extracted . | . . . . . . Installed . | . . . . . . Triggered . | . . . . . . Machines | -11 -10 -10 -9 -9 -8 ---------- Run | Yrd Mat Min Mat Min Mat Machines Disabled 3 | . . . 1 . 2 Max in Single Turn 1 | . . . 1 . 1 Machines Repaired . | . . . . . . Machines Dismantled . | . . . . . . Machines Sabotaged . | . . . . . . Overloaded Fab Kills . | . . . . . . Hacking | -11 -10 -10 -9 -9 -8 --------- Run | Yrd Mat Min Mat Min Mat Machines Accessed 3 | . . . 1 . 2 Terminals 2 | . . . 1 . 1 Fabricators . | . . . . . . Repair Stations 1 | . . . . . 1 Recycling Units . | . . . . . . Scanalyzers . | . . . . . . Garrison Access . | . . . . . . Total Hacks 10 | . . . 4 . 6 Successful 7 | . . . 2 . 5 Failed 3 | . . . 2 . 1 Catastrophic . | . . . . . . Database Lockouts . | . . . . . . Manual 1 | . . . 1 . . Terminals 8 | . . . 4 . 4 Fabricators . | . . . . . . Repair Stations 2 | . . . . . 2 Recycling Units . | . . . . . . Scanalyzers . | . . . . . . Garrison Access . | . . . . . . Terminal Hacks 5 | . . . 2 . 3 Record 2 | . . . . . 2 Unreport Threat 1 | . . . 1 . . Investigation Status 1 | . . . 1 . . Zone Layout 1 | . . . . . 1 Fabricator Hacks . | . . . . . . Repair Station Hacks 2 | . . . . . 2 Scan Component 1 | . . . . . 1 Repair 1 | . . . . . 1 Recycling Unit Hacks . | . . . . . . Scanalyzer . | . . . . . . Garrison Access Hacks . | . . . . . . Unauthorized Hacks . | . . . . . . Terminals . | . . . . . . Fabricators . | . . . . . . Repair Stations . | . . . . . . Recycling Units . | . . . . . . Scanalyzers . | . . . . . . Garrison Access . | . . . . . . Data Cores Recovered . | . . . . . . Used . | . . . . . . Hacking Detections 4 | . . . 2 . 2 Full Trace Events 2 | . . . 1 . 1 Feedback Events . | . . . . . . Feedback Blocked . | . . . . . . Robot Schematics Acquired . | . . . . . . Robots Built . | . . . . . . Authchips . | . . . . . . Time . | . . . . . . Total Robot Build Rating . | . . . . . . Part Schematics Acquired . | . . . . . . Parts Built . | . . . . . . Authchips . | . . . . . . Time . | . . . . . . Total Part Build Rating . | . . . . . . Parts Repaired 1 | . . . . . 1 Time 25 | . . . . . 25 Parts Recycled . | . . . . . . Recycled Matter . | . . . . . . Retrieved Matter . | . . . . . . Retrieved Components . | . . . . . . Parts Scanalyzed . | . . . . . . Part Schematics Acquired . | . . . . . . Parts Damaged . | . . . . . . Bothacking | -11 -10 -10 -9 -9 -8 ------------ Run | Yrd Mat Min Mat Min Mat Used RIF Installer . | . . . . . . Robots Hacked 1 | . . . 1 . . Non-combat 1 | . . . 1 . . Combat . | . . . . . . Robot Hacks Applied 1 | . . . 1 . . no_distress 1 | . . . 1 . . Relay Couplers Released . | . . . . . . Fabnet Peak Effective % . | . . . . . . Robots Rewired . | . . . . . . Allies Hacked . | . . . . . . Hacks Repelled . | . . . . . . Allies | -11 -10 -10 -9 -9 -8 -------- Run | Yrd Mat Min Mat Min Mat Total Allies 1 | . . . . 1 . Largest Group 1 | . . . . 1 1 Highest-Rated Group 31 | . . . . 31 31 Highest-Rated Ally 31 | . . . . 31 31 Total Orders . | . . . . . . Ally Attacks 10 | . . . . 10 . Total Damage 166 | . . . . 166 . Kills 2 | . . . . 2 . Allies Corrupted . | . . . . . . Allies Melted . | . . . . . . Intel | -11 -10 -10 -9 -9 -8 ------- Run | Yrd Mat Min Mat Min Mat Robot Analysis Total . | . . . . . . Derelict Logs Recovered 1 | . . . . 1 . Drone Launches . | . . . . . . Drone Recoveries . | . . . . . . Exploration | -11 -10 -10 -9 -9 -8 ------------- Run | Yrd Mat Min Mat Min Mat Turns Passed 3506 | 69 575 513 1168 249 932 Spaces Moved 1935 | 45 270 248 458 376 538 Core 41 | 17 . 3 . . 21 Treads 543 | 28 270 245 . . . Legs . | . . . . . . Wheels . | . . . . . . Hover 1344 | . . . 458 376 510 Flight 7 | . . . . . 7 Fastest Speed 34 | 50 160 100 58 58 34 Average Speed 100 | 120 160 159 107 58 65 Slowest Speed 250 | 160 160 250 150 58 100 Overloaded Moves . | . . . . . . Propulsion Burnouts . | . . . . . . Robots Hopped . | . . . . . . Cave-ins Triggered . | . . . . . . Exploration Rate (%) 32 | 4 42 34 27 59 27 Regions Visited 5 Branch Regions 2 Pre-discovered Areas 1 | . . 1 . . . Known Exits Taken 1 | . . . . 1 . Unknown Exits Taken 4 | 1 1 1 1 . . Scrap Searched 2 | . . 1 . 1 . Spaces Dug 2 | . . . . . 2 Terrain Destroyed 70 | . 9 35 5 1 20 Melee . | . . . . . . Projectile 20 | . . 4 5 1 10 AOE 50 | . 9 31 . . 10 Terrain Rammed . | . . . . . . Walls Destroyed . | . . . . . . Machines Disabled . | . . . . . . Actions | -11 -10 -10 -9 -9 -8 --------- Run | Yrd Mat Min Mat Min Mat Total 3300 | 60 384 345 1105 399 1007 Wait 1086 | . 91 57 584 15 339 Move 1930 | 44 269 247 457 375 538 Hop . | . . . . . . Pick Up 66 | 8 5 11 18 2 22 Fast Attach . | . . . . . . Attach 37 | 5 2 3 10 1 16 Detach 2 | . . 1 1 . . Swap 21 | . 1 4 9 2 5 Drop 30 | 2 . 8 11 1 8 Fire 126 | . 16 14 14 3 79 Melee 1 | . . . 1 . . Ram . | . . . . . . Kick . | . . . . . . Crush 1 | 1 . . . . . Escape Stasis . | . . . . . . Rewire . | . . . . . . Trap . | . . . . . . Miscellaneous . | . . . . . . Route ------- -11/Scrapyard -10/Materials -10/Mines -9/Materials -9/Mines -8/Materials History --------- Turn | Location | Event 11 | -11/Scrapyard | Discovered new exit (range 16) 70 | -11/Scrapyard | Entered Materials 305 | -10/Materials | Build established: Mutant 551 | -10/Materials | Discovered new exit (range 12) 645 | -10/Materials | Entered Mines 646 | -10/Mines | Learned location of Storage (-7) 646 | -10/Mines | Assembled infested the area 651 | -10/Mines | Assisted by a Guerilla fighting off Assembled 779 | -10/Mines | Received a Rocket Launcher from a helpful Derelict 1142 | -10/Mines | Discovered new exit (range 6) 1153 | -10/Mines | Core integrity fell below 50% 1158 | -10/Mines | Entered Materials 1158 | -9/Materials | Evolved 2 slots: Propulsion x1, Utility x1 1188 | -9/Materials | Lost 5 parts (2n1u2w) 2274 | -9/Materials | Discovered new exit (range 8) 2326 | -9/Materials | Entered Mines 2329 | -9/Mines | Received a Mining Laser from a helpful Derelict 2362 | -9/Mines | A weapon hastily lodged in a ceiling crevice suddenly fell to the ground 2508 | -9/Mines | Identified exit to Materials 2511 | -9/Mines | Found a damaged Exp. Sensor Array with a note attached 2512 | -9/Mines | Found Prototype Device 2551 | -9/Mines | Build established: Scavenger-Mutant 2575 | -9/Mines | Entered Materials 2575 | -8/Materials | Accompanied by 1 ally 2575 | -8/Materials | Evolved 2 slots: Utility x2 2617 | -8/Materials | Repaired Cmb. Airjet 3143 | -8/Materials | Lost 5 parts (1p2n2w) 3394 | -8/Materials | Build established: Hacker-Mutant 3447 | -8/Materials | Core integrity fell below 50% 3471 | -8/Materials | Core integrity fell below 20% 3507 | -8/Materials | Destroyed by H-55 Commando with Gauss Rifle Last Messages --------------- 03472_ C-17 Slicer destroyed. 03473_ Penetrated by Slug. 03474_ The unstable cave ceiling collapses. 03476_ Slug penetrates Wall. 03480_ K-01 Serf collects debris. 03481_ U-05 Engineer lays Concrete. 03485_ Slug penetrates Wall. 03488_ Backup Laser III severed. 03488_ Backup Laser III disintegrated. 03491_ U-05 Engineer lays Concrete. 03491_ Slug penetrates Wall. 03491_ Backup Laser III destroyed. 03492_ Acquired Backup Laser III. 03494_ Slug penetrates Wall. 03494_ Core Shielding destroyed. 03496_ C-17 Slicer destroyed. 03497_ Acquired 18 matter. 03500_ Acquired Cesium-ion Thruster. 03503_ Acquired Flight Unit. 03507_ Penetrated by Slug. Map ----- +----------------------------------------------------+ | | | | | | | | | | | | | | | | | | | | | | | | | | | | | | | ????????####?#########?????##### | | ????????# !### #?????# | | ????????# !## #?????# | | ???###### !## #?????# | | ???# !## #?????# | | ???# !## #?????# | | ???# !######+############## | | ???# ####### ! | | ???# #?# # = | | ???# ####% = ##### ### | | ???# @ =/%h [ # | | ???# ##### ! %*t% % "" | | ???# # [ #[ "" | | ???# *### [ # # "" | | ???# !! ## # # | | ???# ##### # # | | ???# #???# # # ""T"" | | ???# #???# # # """"" | | ???# #???########### # | | ####+## #????? ## ####### | | # # #????? """ ## ##????? | | # # #????? """ ## T###### | | # ! # #????? """ ## ## | | # # #????? ## ## | | # """ # ###########+## # """ | | # """ + [% # """ | | # """ # + """ | | # ###+####""#+#### # """ | | # """ #??????? #####+### """ | | # """ #???????" # # | | # """ #???????" # # | | # #???????" # ###### | | #######????????????????????????? | | ???????????????????????????????? | | ???????????????????????????????? | +----------------------------------------------------+ Best States ------------- Heat Dissipation 31 Energy Generation 15 Energy Capacity 250 Matter Stores 300 Matter Capacity 300 Sight Range 20 Robot Scan Range 14 Terrain Scan Density 85 Core Shielding 20 Propulsion Shielding 33 Phase Shifting 5 Evasion (%) 53 Targeting Accuracy 5 Recoil Reduction 2 Offensive Hacking 20 Item Schematics ----------------- None Robot Schematics ------------------ None Fabricated ------------ Nothing Alien Tech Used ----------------- None Achievements -------------- Everything Is Under Control Challenges ------------ None Game ------ Seed StorageEtherialScythe Manual? 0 Play Time 00:56:33 Cumulative 7.2 hours Start 2024.04.22 @ 20:51:43 End 2024.04.22 @ 21:52:53 Sessions 1 Manual Loads 0 Difficulty Rogue Special Mode None Game No. 9 Rogue 9 Adventurer 0 Explorer 0 Win Type - Total 0 Types 0/0/0/0/0/0/0/0/0 Lore% 15 Gallery% 12 Achievement% 12 Wizard Run 0 Options --------- Layout 2 ASCII 0 Keyboard 1 Movement Numpad Keybinds 0 Fullscreen 1 Font 32/SmallcapsGlow Map View 50x44 Zoom Use 0% Tactical HUD 1 Map Filters NONE Filters NONE Steam 1 RUN: de25d643-d995-4aa6-a32b-8aebfa21fb98